[Event "NJSK 2018 Meisjes C"]
[Site "Assen, Netherlands"]
[Date "2018.04.29"]
[Round "1.1"]
[White "Basa, Manasvita"]
[Black "De Putter, Nina"]
[Result "1-0"]
[TimeControl "40/90m+30m+30sec/move"]
[WhiteElo "1402"]
[BlackElo "1672"]

1. e4 {[%clk 01:30:59]} {[%emt 00:00:01]} e5 {[%clk 01:30:43]} {[%emt
00:00:18]} 2. Nf3 {[%clk 01:31:22]} {[%emt 00:00:05]} Nc6 {[%clk 01:31:07]}
{[%emt 00:00:07]} 3. Bc4 {[%clk 01:31:46]} {[%emt 00:00:06]} Bc5 {[%clk
01:31:31]} {[%emt 00:00:06]} 4. O-O {[%clk 01:32:06]} {[%emt 00:00:08]} Nf6
{[%clk 01:31:53]} {[%emt 00:00:08]} 5. d3 {[%clk 01:32:31]} {[%emt 00:00:06]}
h6 {[%clk 01:31:35]} {[%emt 00:00:47]} 6. Be3 {[%clk 01:32:45]} {[%emt
00:00:16]} Bb6 {[%clk 01:31:50]} {[%emt 00:00:15]} 7. Nc3 {[%clk 01:33:00]}
{[%emt 00:00:15]} d6 {[%clk 01:32:06]} {[%emt 00:00:14]} 8. h3 {[%clk
01:33:23]} {[%emt 00:00:07]} Be6 {[%clk 01:32:14]} {[%emt 00:00:21]} 9. Bb3
{[%clk 01:33:46]} {[%emt 00:00:08]} Qd7 {[%clk 01:31:53]} {[%emt 00:00:51]} 10.
Bxe6 {[%clk 01:28:10]} {[%emt 00:06:06]} fxe6 {[%clk 01:27:38]} {[%emt
00:04:45]} 11. d4 {[%clk 01:23:56]} {[%emt 00:04:45]} exd4 {[%clk 01:27:03]}
{[%emt 00:01:04]} 12. Nxd4 {[%clk 01:24:18]} {[%emt 00:00:08]} O-O-O {[%clk
01:25:21]} {[%emt 00:02:12]} 13. a4 {[%clk 01:05:55]} {[%emt 00:18:54]} Bxd4
{[%clk 01:19:48]} {[%emt 00:06:03]} 14. Bxd4 {[%clk 01:06:13]} {[%emt
00:00:11]} e5 {[%clk 01:20:01]} {[%emt 00:00:17]} 15. Be3 {[%emt 00:01:20]} g5
{[%clk 01:19:38]} 16. f3 {[%clk 01:01:31]} {[%emt 00:05:15]} Nh5 {[%clk
01:19:13]} {[%emt 00:00:55]} 17. Nd5 {[%clk 00:55:34]} {[%emt 00:06:27]} Nf4
{[%clk 01:16:52]} {[%emt 00:02:51]} 18. b4 {[%clk 00:53:12]} {[%emt 00:02:52]}
Kb8 {[%clk 00:59:46]} {[%emt 00:17:36]} 19. b5 {[%clk 00:50:02]} {[%emt
00:03:40]} Na5 {[%clk 00:52:02]} {[%emt 00:08:15]} 20. Qe1 {[%clk 00:47:51]}
{[%emt 00:02:39]} Nc4 {[%clk 00:47:56]} {[%emt 00:04:36]} 21. Bf2 {[%clk
00:47:29]} {[%emt 00:00:51]} h5 {[%clk 00:46:26]} {[%emt 00:02:01]} 22. Qb4
{[%clk 00:46:49]} {[%emt 00:01:10]} Nxd5 {[%clk 00:35:26]} {[%emt 00:11:30]} 23.
exd5 {[%clk 00:42:27]} {[%emt 00:04:53]} Nb6 {[%clk 00:35:09]} {[%emt
00:00:46]} 24. Bxb6 {[%clk 00:42:17]} {[%emt 00:00:41]} cxb6 {[%clk 00:34:44]}
{[%emt 00:00:55]} 25. a5 {[%clk 00:35:34]} {[%emt 00:07:13]} Qc7 {[%clk
00:34:06]} {[%emt 00:01:07]} 26. Ra3 {[%clk 00:17:22]} {[%emt 00:18:42]} Qc5+
{[%clk 00:29:18]} {[%emt 00:05:17]} 27. Qxc5 {[%clk 00:17:42]} {[%emt
00:00:11]} bxc5 {[%clk 00:29:41]} {[%emt 00:00:07]} 28. c4 {[%clk 00:17:43]}
{[%emt 00:00:29]} Rdf8 {[%clk 00:29:25]} {[%emt 00:00:47]} 29. Re1 {[%clk
00:16:55]} {[%emt 00:01:17]} Rf4 {[%clk 00:28:59]} {[%emt 00:00:56]} 30. Re4
{[%clk 00:17:18]} {[%emt 00:00:07]} Rxe4 {[%clk 00:21:59]} {[%emt 00:07:31]} 31.
fxe4 {[%clk 00:17:41]} {[%emt 00:00:06]} Rf8 {[%clk 00:22:24]} {[%emt
00:00:05]} 32. Rf3 {[%clk 00:17:22]} {[%emt 00:00:49]} Rf4 33. Rxf4 {[%clk
00:17:02]} gxf4 {[%clk 00:19:51]} {[%emt 00:02:57]} 34. Kf2 {[%clk 00:17:23]}
{[%emt 00:00:09]} Kc7 {[%clk 00:19:55]} {[%emt 00:00:26]} 35. g3 {[%clk
00:17:19]} {[%emt 00:00:34]} fxg3+ {[%clk 00:19:09]} {[%emt 00:01:17]} 36. Kxg3
{[%clk 00:17:42]} {[%emt 00:00:06]} Kd7 {[%clk 00:19:35]} {[%emt 00:00:05]} 37.
Kh4 {[%clk 00:17:56]} {[%emt 00:00:16]} Ke7 {[%clk 00:19:58]} {[%emt 00:00:08]}
38. Kxh5 {[%clk 00:18:12]} {[%emt 00:00:12]} Kf6 {[%clk 00:20:13]} {[%emt
00:00:15]} 39. Kh6 {[%clk 00:18:12]} {[%emt 00:00:31]} Kf7 {[%clk 00:20:16]}
{[%emt 00:00:26]} 40. Kg5 {[%clk 00:18:35]} {[%emt 00:00:08]} 1-0

[Event "NJSK 2018 Meisjes C"]
[Site "Assen, Netherlands"]
[Date "2018.04.29"]
[Round "1.2"]
[White "Honkoop, Stella"]
[Black "Raulji, Kavya"]
[Result "1/2-1/2"]
[TimeControl "40/90m+30m+30sec/move"]
[WhiteElo "1583"]
[BlackElo "1394"]

1. e4 {[%clk 01:30:49]} {[%emt 00:00:12]} c5 {[%clk 01:30:57]} {[%emt
00:00:03]} 2. Nf3 {[%clk 01:31:03]} {[%emt 00:00:15]} d6 {[%clk 01:31:23]}
{[%emt 00:00:05]} 3. d4 {[%clk 01:30:57]} {[%emt 00:00:36]} cxd4 {[%clk
01:31:48]} {[%emt 00:00:03]} 4. Nxd4 {[%clk 01:31:20]} {[%emt 00:00:07]} Nf6
{[%clk 01:32:14]} {[%emt 00:00:05]} 5. Nc3 {[%clk 01:30:48]} {[%emt 00:01:02]}
a6 {[%clk 01:32:38]} {[%emt 00:00:05]} 6. Be3 {[%clk 01:29:54]} {[%emt
00:01:24]} e5 {[%clk 01:32:57]} {[%emt 00:00:11]} 7. Nb3 {[%clk 01:29:51]}
{[%emt 00:00:33]} Be7 {[%clk 01:33:08]} {[%emt 00:00:19]} 8. f3 {[%clk
01:28:27]} {[%emt 00:01:54]} Be6 {[%clk 01:33:11]} {[%emt 00:00:27]} 9. Qd2
{[%clk 01:27:33]} {[%emt 00:01:24]} Nbd7 {[%clk 01:32:26]} {[%emt 00:01:15]} 10.
O-O-O {[%clk 01:18:44]} {[%emt 00:09:20]} O-O {[%clk 01:30:07]} {[%emt
00:02:48]} 11. g4 {[%clk 01:16:33]} {[%emt 00:02:41]} b5 {[%clk 01:29:53]}
{[%emt 00:00:44]} 12. h4 {[%clk 01:06:34]} {[%emt 00:10:29]} b4 {[%clk
01:27:31]} {[%emt 00:02:52]} 13. Ne2 {[%clk 00:58:33]} {[%emt 00:08:32]} a5
{[%clk 01:23:06]} {[%emt 00:04:54]} 14. h5 {[%clk 00:49:47]} {[%emt 00:09:16]}
a4 {[%clk 01:21:13]} {[%emt 00:02:23]} 15. Na1 {[%clk 00:49:47]} {[%emt
00:00:31]} d5 {[%clk 01:07:23]} {[%emt 00:14:19]} 16. g5 {[%clk 00:38:18]}
{[%emt 00:12:00]} d4 {[%clk 01:06:49]} {[%emt 00:01:03]} 17. Bf2 {[%clk
00:32:28]} {[%emt 00:06:20]} Nxe4 {[%clk 01:04:58]} {[%emt 00:02:20]} 18. Qe1
{[%clk 00:28:20]} {[%emt 00:04:38]} Nxf2 {[%clk 01:04:04]} {[%emt 00:01:24]} 19.
Qxf2 {[%clk 00:28:23]} {[%emt 00:00:28]} Bxg5+ {[%clk 01:04:21]} {[%emt
00:00:13]} 20. Kb1 {[%clk 00:28:37]} {[%emt 00:00:17]} Nb6 {[%clk 00:58:16]}
{[%emt 00:06:33]} 21. Bh3 {[%clk 00:24:05]} {[%emt 00:05:02]} Bd5 {[%clk
00:53:21]} {[%emt 00:05:25]} 22. Ng3 {[%clk 00:22:42]} {[%emt 00:01:54]} a3
{[%clk 00:51:28]} {[%emt 00:02:22]} 23. b3 {[%clk 00:22:15]} {[%emt 00:00:58]}
Qc7 {[%clk 00:49:52]} {[%emt 00:02:05]} 24. Ne2 {[%clk 00:20:58]} {[%emt
00:01:48]} Qc6 {[%clk 00:47:09]} {[%emt 00:03:12]} 25. Rhf1 {[%clk 00:18:44]}
{[%emt 00:02:46]} f5 {[%clk 00:43:39]} {[%emt 00:03:59]} 26. Bg2 {[%clk
00:17:11]} {[%emt 00:02:03]} Rac8 {[%clk 00:43:13]} {[%emt 00:00:55]} 27. Qe1
{[%clk 00:16:24]} {[%emt 00:01:18]} Qc7 {[%clk 00:38:34]} {[%emt 00:05:07]} 28.
Qxb4 {[%clk 00:11:52]} {[%emt 00:05:03]} Be7 {[%clk 00:35:53]} {[%emt
00:03:11]} 29. Qd2 {[%clk 00:11:02]} {[%emt 00:01:22]} Rb8 {[%clk 00:33:13]}
{[%emt 00:03:09]} 30. Rg1 {[%clk 00:10:12]} {[%emt 00:01:20]} Nc4 {[%clk
00:29:51]} {[%emt 00:03:50]} 31. Qe1 {[%clk 00:09:10]} {[%emt 00:01:34]} Ne3
{[%clk 00:29:09]} {[%emt 00:01:11]} 32. Rc1 {[%clk 00:08:18]} {[%emt 00:01:23]}
Bf7 {[%clk 00:22:45]} {[%emt 00:06:51]} 33. h6 {[%clk 00:06:33]} {[%emt
00:02:17]} g6 {[%clk 00:22:01]} {[%emt 00:01:13]} 34. Bh3 {[%clk 00:05:52]}
{[%emt 00:01:13]} Rfc8 {[%clk 00:18:43]} {[%emt 00:03:47]} 35. Qd2 {[%clk
00:03:34]} {[%emt 00:02:49]} Bb4 {[%clk 00:16:22]} {[%emt 00:02:50]} 36. c3
{[%clk 00:02:05]} {[%emt 00:01:59]} Ba5 {[%clk 00:15:21]} {[%emt 00:01:30]} 37.
Nc2 {[%clk 00:01:23]} {[%emt 00:01:14]} Nxc2 {[%clk 00:07:08]} {[%emt
00:08:42]} 38. Qxc2 {[%clk 00:01:03]} {[%emt 00:00:50]} dxc3 {[%clk 00:05:27]}
{[%emt 00:02:11]} 39. Bxf5 {[%clk 00:00:56]} {[%emt 00:00:38]} 1/2-1/2

[Event "NJSK 2018 Meisjes C"]
[Site "Assen, Netherlands"]
[Date "2018.04.29"]
[Round "1.3"]
[White "Arnold, Kiri"]
[Black "Huang, Wendy"]
[Result "0-1"]
[TimeControl "40/90m+30m+30sec/move"]
[WhiteElo "1340"]
[BlackElo "1572"]

1. e4 {[%clk 01:30:57]} {[%emt 00:00:04]} e5 {[%clk 01:30:52]} {[%emt
00:00:10]} 2. d4 {[%clk 01:30:52]} {[%emt 00:00:32]} exd4 {[%clk 01:30:23]}
{[%emt 00:00:59]} 3. c3 {[%clk 01:30:54]} {[%emt 00:00:29]} Nc6 {[%clk
01:29:05]} {[%emt 00:01:48]} 4. cxd4 {[%clk 01:29:52]} {[%emt 00:01:32]} d5
{[%clk 01:28:18]} {[%emt 00:01:17]} 5. e5 {[%clk 01:24:27]} {[%emt 00:05:55]}
Bf5 {[%clk 01:26:45]} {[%emt 00:02:03]} 6. Nc3 {[%clk 01:22:00]} {[%emt
00:02:57]} Nb4 {[%clk 01:22:57]} {[%emt 00:04:18]} 7. Bb5+ {[%clk 00:23:26]}
{[%emt 00:59:04]} c6 {[%clk 01:22:07]} {[%emt 00:01:20]} 8. Ba4 {[%clk
00:23:51]} {[%emt 00:00:05]} Qb6 {[%clk 01:15:22]} {[%emt 00:07:14]} 9. Nge2
{[%clk 00:16:30]} {[%emt 00:07:51]} Nd3+ {[%clk 01:13:27]} {[%emt 00:02:26]} 10.
Kf1 {[%clk 00:16:29]} {[%emt 00:00:30]} Ne7 {[%clk 01:02:23]} {[%emt 00:11:34]}
11. Bc2 {[%clk 00:11:18]} {[%emt 00:05:41]} Qa6 {[%clk 01:00:39]} {[%emt
00:02:15]} 12. Bxd3 {[%clk 00:11:10]} {[%emt 00:00:38]} Bxd3 {[%clk 01:00:47]}
{[%emt 00:00:21]} 13. Ke1 {[%clk 00:11:19]} {[%emt 00:00:21]} Ng6 {[%clk
00:58:41]} {[%emt 00:02:36]} 14. Nf4 {[%clk 00:09:00]} {[%emt 00:02:49]} Nxf4
{[%clk 00:57:02]} {[%emt 00:02:09]} 15. Bxf4 {[%clk 00:09:28]} {[%emt
00:00:02]} Be7 {[%clk 00:55:33]} {[%emt 00:01:58]} 16. Qd2 {[%clk 00:07:32]}
{[%emt 00:02:27]} O-O {[%clk 00:54:22]} {[%emt 00:01:40]} 17. Be3 {[%clk
00:04:59]} {[%emt 00:03:04]} Bb4 {[%clk 00:53:06]} {[%emt 00:01:46]} 18. a3
{[%clk 00:04:45]} {[%emt 00:00:45]} Bg6 {[%clk 00:51:08]} {[%emt 00:02:28]} 19.
Bf4 {[%clk 00:03:54]} {[%emt 00:01:20]} Rfe8 {[%clk 00:50:08]} {[%emt
00:01:30]} 20. Kd1 {[%emt 00:01:04]} c5 {[%clk 00:48:14]} {[%emt 00:02:21]} 21.
Rc1 {[%clk 00:02:22]} {[%emt 00:01:31]} Bxc3 {[%clk 00:44:21]} {[%emt
00:04:23]} 22. Rxc3 {[%clk 00:02:06]} {[%emt 00:00:46]} Qa4+ {[%clk 00:43:25]}
{[%emt 00:01:26]} 23. Ke1 {[%clk 00:02:04]} {[%emt 00:00:32]} cxd4 {[%clk
00:42:45]} {[%emt 00:01:10]} 24. Rc5 {[%clk 00:01:40]} {[%emt 00:00:54]} d3
{[%clk 00:40:06]} {[%emt 00:03:09]} 25. f3 {[%clk 00:01:01]} {[%emt 00:01:09]}
Rac8 {[%clk 00:39:34]} {[%emt 00:01:02]} 26. Qc1 {[%clk 00:00:42]} {[%emt
00:00:50]} Rxc5 {[%clk 00:39:35]} {[%emt 00:00:29]} 27. Qxc5 {[%clk 00:01:09]}
{[%emt 00:00:02]} Qxf4 {[%clk 00:39:41]} {[%emt 00:00:23]} 0-1

[Event "NJSK 2018 Meisjes C"]
[Site "Assen, Netherlands"]
[Date "2018.04.29"]
[Round "1.4"]
[White "Cordes, Jule"]
[Black "Hatzmann, Mirthe"]
[Result "1/2-1/2"]
[TimeControl "40/90m+30m+30sec/move"]
[WhiteElo "1551"]
[BlackElo "1323"]

1. d4 {[%clk 01:30:58]} {[%emt 00:00:03]} d5 {[%clk 01:30:56]} {[%emt
00:00:04]} 2. c4 {[%clk 01:31:18]} {[%emt 00:00:12]} c6 {[%clk 01:31:22]}
{[%emt 00:00:03]} 3. Nc3 {[%clk 01:31:39]} {[%emt 00:00:08]} Nf6 {[%clk
01:31:41]} {[%emt 00:00:14]} 4. Nf3 {[%clk 01:31:50]} {[%emt 00:00:16]} dxc4
{[%clk 01:31:31]} {[%emt 00:00:41]} 5. e3 {[%clk 01:32:02]} {[%emt 00:00:18]}
b5 {[%clk 01:31:48]} {[%emt 00:00:14]} 6. a4 {[%clk 01:32:15]} {[%emt
00:00:17]} Bd7 {[%clk 01:24:49]} {[%emt 00:07:28]} 7. Be2 {[%clk 01:23:21]}
{[%emt 00:09:24]} e6 {[%clk 01:20:18]} {[%emt 00:05:01]} 8. O-O {[%clk
01:20:24]} {[%emt 00:03:26]} Be7 {[%clk 01:13:39]} {[%emt 00:07:09]} 9. Bd2
{[%clk 01:14:01]} {[%emt 00:06:53]} O-O {[%clk 01:10:00]} {[%emt 00:04:10]} 10.
Qc2 {[%clk 01:06:00]} {[%emt 00:08:28]} Qb6 {[%clk 00:57:44]} {[%emt 00:12:49]}
11. Ne5 {[%clk 00:53:29]} {[%emt 00:13:00]} Re8 {[%clk 00:50:01]} {[%emt
00:08:14]} 12. Bf3 {[%clk 00:51:10]} {[%emt 00:02:48]} Nd5 {[%clk 00:40:24]}
{[%emt 00:10:07]} 13. axb5 {[%clk 00:49:04]} {[%emt 00:02:37]} Nxc3 {[%clk
00:29:09]} {[%emt 00:11:45]} 14. Nxc4 {[%clk 00:45:39]} {[%emt 00:03:55]} Ne2+
{[%clk 00:21:41]} {[%emt 00:07:57]} 15. Bxe2 {[%clk 00:45:20]} {[%emt
00:00:49]} Qxb5 {[%clk 00:20:26]} {[%emt 00:01:46]} 16. Bd3 {[%clk 00:44:13]}
{[%emt 00:01:36]} Qh5 {[%clk 00:19:19]} {[%emt 00:01:37]} 17. Nb6 {[%clk
00:42:56]} {[%emt 00:01:48]} Bd6 {[%clk 00:18:07]} {[%emt 00:01:42]} 18. h3
{[%clk 00:43:08]} {[%emt 00:00:17]} axb6 {[%clk 00:16:19]} {[%emt 00:02:18]} 19.
Rxa8 {[%clk 00:43:27]} {[%emt 00:00:11]} h6 {[%clk 00:15:09]} {[%emt 00:01:41]}
20. Re1 {[%clk 00:32:57]} {[%emt 00:10:59]} e5 {[%clk 00:13:33]} {[%emt
00:02:06]} 21. Bc3 {[%clk 00:29:56]} {[%emt 00:03:31]} exd4 {[%clk 00:12:16]}
{[%emt 00:01:48]} 22. Bxd4 {[%clk 00:29:47]} {[%emt 00:00:38]} c5 {[%clk
00:11:49]} {[%emt 00:00:57]} 23. Bc3 {[%clk 00:28:55]} {[%emt 00:01:22]} Bxh3
{[%clk 00:09:31]} {[%emt 00:02:48]} 24. gxh3 {[%clk 00:22:02]} {[%emt
00:07:23]} Qxh3 {[%clk 00:09:34]} {[%emt 00:00:27]} 25. f4 {[%clk 00:22:07]}
{[%emt 00:00:25]} Rxe3 {[%clk 00:08:37]} {[%emt 00:01:27]} 26. Rxe3 {[%clk
00:22:20]} {[%emt 00:00:17]} Qxe3+ {[%clk 00:08:49]} {[%emt 00:00:18]} 27. Kg2
{[%clk 00:10:36]} {[%emt 00:12:10]} Bxf4 {[%clk 00:08:07]} {[%emt 00:01:16]}
1/2-1/2

[Event "NJSK 2018 Meisjes C"]
[Site "Assen, Netherlands"]
[Date "2018.04.29"]
[Round "1.5"]
[White "Velasco, Kathleen"]
[Black "Den Heijer, Rolinde"]
[Result "1/2-1/2"]
[TimeControl "40/90m+30m+30sec/move"]
[WhiteElo "1284"]
[BlackElo "1538"]

1. e4 {[%clk 01:30:30]} e5 {[%clk 01:30:30]} 2. Nf3 {[%clk 01:30:30]} Nc6
{[%clk 01:30:30]} 3. Bc4 {[%clk 01:30:30]} Bc5 {[%clk 01:30:30]} 4. c3 {[%clk
01:30:30]} Nf6 {[%clk 01:30:30]} 5. d4 {[%clk 01:30:30]} exd4 {[%clk 01:30:30]}
6. cxd4 {[%clk 01:30:30]} Bb4+ {[%clk 01:30:30]} 7. Bd2 {[%clk 01:30:30]} Nxe4
{[%clk 01:30:30]} 8. Bxb4 {[%clk 01:30:30]} Nxb4 {[%clk 01:30:30]} 9. Qb3
{[%clk 01:30:30]} d5 {[%clk 01:30:30]} 10. Qxb4 {[%clk 01:30:30]} dxc4 {[%clk
01:30:30]} 11. Qxc4 {[%clk 01:30:30]} O-O {[%clk 01:30:30]} 12. O-O {[%clk
01:30:30]} Bg4 {[%clk 01:30:30]} 13. Nbd2 {[%clk 01:30:30]} Nxd2 {[%clk
01:30:30]} 14. Nxd2 {[%clk 01:30:30]} Qg5 {[%clk 01:30:30]} 15. Ne4 {[%clk
01:30:30]} Qg6 {[%clk 01:30:30]} 16. Ng3 {[%clk 01:30:30]} c6 {[%clk 01:30:30]}
17. Rfe1 {[%clk 01:30:30]} h5 {[%clk 01:30:30]} 18. Qc3 {[%clk 01:30:30]} h4
{[%clk 01:30:30]} 19. Ne2 {[%clk 01:30:30]} Qg5 {[%clk 01:30:30]} 20. h3 {[%clk
01:30:30]} Be6 {[%clk 01:30:30]} 21. Qe3 {[%clk 01:30:30]} Qa5 {[%clk
01:30:30]} 22. Nc3 {[%clk 01:30:30]} Rae8 {[%clk 01:30:30]} 23. Qd2 {[%clk
01:30:30]} Qf5 {[%clk 01:30:30]} 24. Re5 {[%clk 01:30:30]} Qg6 {[%clk
01:30:30]} 25. Qe3 {[%clk 01:30:30]} Qh7 {[%clk 01:30:30]} 26. Ne2 {[%clk
01:30:30]} Bd7 {[%clk 01:30:30]} 27. Rd1 {[%clk 01:30:30]} f6 {[%clk 01:30:30]}
28. Qb3+ {[%clk 01:30:30]} Kh8 {[%clk 01:30:30]} 29. Rxe8 {[%clk 01:30:30]}
Rxe8 {[%clk 01:30:30]} 30. Qxb7 {[%clk 01:30:30]} Qc2 {[%clk 01:30:30]} 31. Re1
{[%clk 01:30:30]} Rxe2 {[%clk 01:30:30]} 32. Rxe2 {[%clk 01:30:30]} Qxe2 {[%clk
01:30:30]} 33. Qxd7 {[%clk 01:30:30]} Qe1+ {[%clk 01:30:30]} 34. Kh2 {[%clk
01:30:30]} Qxf2 {[%clk 01:30:30]} 35. Qe8 {[%clk 01:30:30]} Kh7 {[%clk
01:30:30]} 36. Qh5 {[%clk 01:30:30]} Kg8 {[%clk 01:30:30]} 37. Qe8+ {[%clk
01:30:30]} Kh7 {[%clk 01:30:30]} 38. Qe4 {[%clk 01:30:30]} Kg8 {[%clk
01:30:30]} 39. b4 {[%clk 01:30:30]} Qg3 {[%clk 01:30:30]} 40. Kg1 {[%clk
01:30:30]} Qc3 {[%clk 01:30:30]} 41. Qxh4 {[%clk 01:30:30]} Qxb4 {[%clk
01:30:30]} 42. Qe4 {[%clk 01:30:30]} Kf7 {[%clk 01:30:30]} 43. Qg4 {[%clk
01:30:30]} a5 {[%clk 01:30:30]} 44. Qd7+ {[%clk 01:30:30]} Kf8 {[%clk
01:30:30]} 45. Qd8+ {[%clk 01:30:30]} Kf7 {[%clk 01:30:30]} 46. Qd7+ {[%clk
01:30:30]} Kf8 {[%clk 01:30:30]} 47. Kh2 {[%clk 01:30:30]} Qb8 {[%clk
01:30:30]} 48. Kg1 {[%clk 01:30:30]} Qb1+ {[%clk 01:30:30]} 49. Kh2 {[%clk
01:30:30]} Qb8 {[%clk 01:30:30]} 50. Kg1 {[%clk 01:30:30]} Qb1+ {[%clk
01:30:30]} 51. Kh2 {[%clk 01:30:30]} Qb8 {[%clk 01:30:30]} 52. Kh1 {[%clk
01:30:30]} 1/2-1/2

[Event "NJSK 2018 Meisjes C"]
[Site "Assen, Netherlands"]
[Date "2018.04.29"]
[Round "1.6"]
[White "De Zoeten, Cato"]
[Black "Van Essen, Marieke"]
[Result "1-0"]
[TimeControl "40/90m+30m+30sec/move"]
[WhiteElo "1496"]
[BlackElo "1282"]

1. e4 {[%clk 01:30:58]} e5 {[%clk 01:30:58]} {[%emt 00:00:02]} 2. Nf3 {[%clk
01:31:19]} {[%emt 00:00:12]} Nc6 {[%clk 01:31:23]} {[%emt 00:00:05]} 3. d4
{[%clk 01:31:44]} {[%emt 00:00:02]} exd4 {[%clk 01:31:51]} {[%emt 00:00:03]} 4.
Nxd4 {[%clk 01:32:06]} {[%emt 00:00:09]} Qf6 {[%clk 01:32:17]} {[%emt
00:00:05]} 5. Be3 {[%clk 01:31:10]} {[%emt 00:01:22]} Bc5 {[%clk 01:32:29]}
{[%emt 00:00:19]} 6. c3 {[%clk 01:31:06]} {[%emt 00:00:32]} Nge7 {[%clk
01:31:18]} {[%emt 00:01:42]} 7. Bc4 {[%clk 01:30:52]} {[%emt 00:00:43]} Ne5
{[%clk 01:27:40]} {[%emt 00:04:10]} 8. Be2 {[%clk 01:31:06]} {[%emt 00:00:14]}
Qg6 {[%clk 01:27:12]} {[%emt 00:00:59]} 9. O-O {[%clk 01:28:08]} {[%emt
00:03:28]} O-O {[%clk 01:24:21]} {[%emt 00:03:22]} 10. f4 {[%clk 01:18:08]}
{[%emt 00:10:29]} Qxe4 {[%clk 01:21:01]} {[%emt 00:03:50]} 11. Qd2 {[%clk
01:03:57]} {[%emt 00:14:41]} N5c6 {[%clk 01:18:50]} {[%emt 00:02:41]} 12. Bd3
{[%clk 00:47:39]} {[%emt 00:16:48]} Qd5 {[%clk 01:15:18]} {[%emt 00:04:01]} 13.
c4 {[%clk 00:44:34]} {[%emt 00:03:36]} Qh5 {[%clk 01:08:29]} {[%emt 00:07:19]}
14. Nb5 {[%clk 00:38:23]} {[%emt 00:06:42]} d6 {[%clk 00:58:54]} {[%emt
00:10:05]} 15. Nxc7 {[%clk 00:32:54]} {[%emt 00:05:59]} Rb8 {[%clk 00:58:48]}
{[%emt 00:00:35]} 16. Nc3 {[%clk 00:31:36]} {[%emt 00:01:48]} Be6 {[%clk
00:52:54]} {[%emt 00:06:24]} 17. Nxe6 {[%clk 00:28:30]} {[%emt 00:03:36]} fxe6
{[%clk 00:53:07]} {[%emt 00:00:17]} 18. Ne4 {[%clk 00:24:40]} {[%emt 00:04:20]}
Bxe3+ {[%clk 00:46:54]} {[%emt 00:06:42]} 19. Qxe3 {[%clk 00:21:47]} {[%emt
00:03:24]} Nf5 {[%clk 00:45:43]} {[%emt 00:01:41]} 20. Qf3 {[%clk 00:19:16]}
{[%emt 00:02:56]} Qxf3 {[%clk 00:44:54]} {[%emt 00:01:24]} 21. Rxf3 {[%clk
00:19:44]} {[%emt 00:00:02]} Nfd4 {[%clk 00:43:32]} {[%emt 00:01:52]} 22. Rff1
{[%clk 00:19:05]} {[%emt 00:01:08]} Nb4 {[%emt 00:02:50]} 23. Rad1 {[%clk
00:17:29]} Nxa2 {[%clk 00:39:46]} {[%emt 00:04:01]} 24. Bb1 {[%clk 00:15:18]}
{[%emt 00:02:42]} Ne2+ {[%clk 00:40:07]} {[%emt 00:00:09]} 25. Kf2 {[%clk
00:15:26]} {[%emt 00:00:21]} Nac1 {[%clk 00:37:25]} {[%emt 00:03:13]} 26. g3
{[%clk 00:13:29]} {[%emt 00:02:27]} e5 {[%clk 00:36:52]} {[%emt 00:01:03]} 27.
Rxc1 {[%clk 00:12:42]} {[%emt 00:01:17]} Nxc1 {[%clk 00:37:12]} {[%emt
00:00:11]} 28. Rxc1 {[%clk 00:13:07]} {[%emt 00:00:05]} Rbd8 {[%clk 00:36:16]}
{[%emt 00:01:25]} 29. Ke3 {[%clk 00:12:20]} {[%emt 00:01:16]} exf4+ {[%clk
00:35:37]} {[%emt 00:01:09]} 30. gxf4 {[%clk 00:12:41]} {[%emt 00:00:09]} Rde8
{[%clk 00:35:12]} {[%emt 00:00:56]} 31. Kf3 {[%clk 00:12:44]} {[%emt 00:00:27]}
Re6 {[%clk 00:34:14]} {[%emt 00:01:28]} 32. Ba2 {[%clk 00:10:56]} {[%emt
00:02:17]} Rd8 {[%clk 00:30:17]} {[%emt 00:04:26]} 33. Nxd6 {[%clk 00:08:09]}
{[%emt 00:03:19]} Re7 {[%clk 00:28:25]} {[%emt 00:02:22]} 34. c5+ {[%clk
00:07:30]} {[%emt 00:01:10]} Kf8 {[%clk 00:27:56]} {[%emt 00:00:58]} 35. b4
{[%clk 00:07:16]} {[%emt 00:00:43]} a6 {[%clk 00:26:40]} {[%emt 00:01:47]} 36.
Rg1 {[%clk 00:05:56]} {[%emt 00:01:49]} b6 {[%clk 00:24:07]} {[%emt 00:03:04]}
37. Rg5 {[%clk 00:05:07]} {[%emt 00:01:17]} g6 {[%clk 00:23:00]} {[%emt
00:01:39]} 38. f5 {[%clk 00:04:27]} {[%emt 00:01:10]} Rg7 {[%clk 00:21:13]}
{[%emt 00:02:17]} 39. fxg6 {[%clk 00:02:40]} {[%emt 00:02:18]} Rxg6 {[%clk
00:19:50]} {[%emt 00:01:52]} 40. Rf5+ {[%clk 00:02:35]} {[%emt 00:00:35]} Kg7
{[%clk 00:20:05]} {[%emt 00:00:14]} 41. Rf7+ {[%clk 00:02:47]} {[%emt
00:00:19]} Kh6 {[%clk 00:19:37]} {[%emt 00:00:58]} 42. Bb1 {[%clk 00:01:33]}
{[%emt 00:01:42]} 1-0